bitfinex-derivatives/quotes_ETHF0:USTF0_20250712
["timestamp","ask_amount","ask_price","bid_price","bid_amount"]
[1752321010150,3.6125,2968.5,2968.4,25.43786]
[1752321010746,3.6125,2968.5,2968.4,1.69286]
[1752321010946,3.6125,2968.5,2968.4,24.39546]
[1752321011244,3.6125,2968.5,2968.4,0.67346]
[1752321011448,3.6125,2968.5,2968.4,24.39546]
[1752321011449,4.45252259,2968.5,2968.4,24.39546]
[1752321013343,4.24287,2967.9,2967.8,0.00505706]
[1752321013548,3.5693,2967.1,2967.0,5.79617]
[1752321013748,3.5693,2967.1,2967.0,29.51217]
[1752321014146,3.5693,2967.1,2967.0,31.10507]
[1752321014747,3.5693,2967.1,2967.0,7.38907]
[1752321014953,3.5693,2967.1,2967.0,31.10207]
[1752321015756,3.5693,2967.1,2967.0,31.10507]
[1752321021661,2.5171,2967.6,2967.5,1.67326]
[1752321021858,2.5171,2967.6,2967.5,25.38226]
[1752321022058,3.4213,2967.6,2967.5,25.38226]
[1752321023958,3.88137,2967.9,2967.5,25.38226]
[1752321023959,3.4213,2967.9,2967.8,3.26609]
[1752321024160,3.4213,2967.9,2967.8,26.96709]
[1752321024557,3.4213,2967.9,2967.8,3.26609]
[1752321024757,3.4213,2967.9,2967.8,26.96709]
[1752321029767,3.4213,2967.9,2967.8,27.85929]
[1752321030168,3.42367273,2967.9,2967.8,27.85929]
[1752321031665,2.73e-06,2967.9,2967.8,27.85929]
[1752321031868,2.73e-06,2967.9,2967.8,28.69931259]
[1752321032366,0.90420273,2967.9,2967.8,28.69931259]
[1752321037375,2.45290273,2967.9,2967.8,28.69931259]
[1752321037568,3.42130273,2967.9,2967.8,27.85929]
[1752321040072,3.42130273,2967.9,2967.8,0.67359]
[1752321040273,4.26132532,2967.9,2967.8,24.34259]
[1752321044279,4.26132532,2967.9,2967.8,23.669]
[1752321045079,4.26132532,2967.9,2967.8,24.34259]
[1752321047376,4.93489532,2967.9,2967.8,23.669]
[1752321047681,4.93489532,2967.9,2967.8,24.34259]
[1752321048374,4.26132532,2967.9,2967.8,24.34259]
[1752321048572,1.0325,2967.5,2967.3,3.2078]
[1752321048777,1.0325,2967.5,2967.4,24.32868]
[1752321048978,1.0325,2967.5,2967.4,0.67368]
[1752321049174,1.9938,2967.5,2967.4,24.32868]
[1752321049380,3.564,2967.5,2967.4,24.32868]
[1752321049575,2.6027,2967.1,2967.0,52.39857]
[1752321049880,3.564,2967.1,2967.0,52.39857]
[1752321050080,3.564,2967.1,2967.0,27.53457]
[1752321050280,3.564,2967.1,2967.0,28.48907]
[1752321051583,3.564,2967.1,2967.0,27.53457]
[1752321051884,3.564,2967.1,2967.0,3.88157]
[1752321052072,3.564,2967.1,2967.0,27.53357]
[1752321053185,4.23775,2967.1,2967.0,27.53357]
[1752321053581,3.564,2967.1,2967.0,27.53357]
[1752321053983,3.564,2967.1,2967.0,28.48807]
[1752321056379,1.0325,2966.8,2966.7,4.1623]
[1752321056581,3.564,2966.8,2966.7,24.5975]
[1752321056881,1.0325,2966.6,2966.5,3.10327]
[1752321057080,3.564,2966.6,2966.5,26.74627]
[1752321060490,3.564,2966.6,2966.5,0.9545]
[1752321060690,3.564,2966.6,2966.5,24.5955]
[1752321061084,4.23786,2966.6,2966.5,24.5955]
[1752321061987,0.67391,2966.4,2966.3,2.4294]
[1752321062297,1.70646,2966.2,2966.1,53.1997]
[1752321062491,4.23796,2966.2,2966.1,73.6269]
[1752321062790,4.23796,2966.2,2966.1,72.152]
[1752321063179,3.564,2966.2,2966.1,72.82598]
[1752321063385,3.564,2966.2,2966.1,26.73838]
[1752321064480,3.564,2966.2,2966.1,3.10338]
[1752321064681,3.564,2966.2,2966.1,26.73838]
[1752321065992,3.564,2966.2,2966.1,25.26348]
[1752321067193,3.564,2966.2,2966.1,26.73838]
[1752321067794,3.564,2966.2,2966.1,3.10338]
[1752321067986,3.564,2966.2,2966.1,26.73438]
[1752321071596,3.564,2966.2,2966.1,3.10338]
[1752321071891,3.564,2966.2,2966.1,26.73038]
[1752321072597,4.23796,2966.2,2966.1,26.73038]
[1752321072789,3.564,2966.2,2966.1,25.25548]
[1752321072994,3.564,2966.2,2966.1,26.73038]
[1752321073496,4.23796,2966.2,2966.1,25.25548]
[1752321073698,3.564,2966.2,2966.1,25.25548]
[1752321073999,4.23796,2966.2,2966.1,25.25548]
[1752321074189,4.23796,2966.2,2966.1,0.9545]
[1752321074396,3.24076,2966.2,2966.1,23.619]
[1752321074898,1.6063,2966.0,2965.9,1.66982]
[1752321075100,4.1019,2966.0,2965.9,25.28782]
[1752321075597,4.1019,2966.0,2965.9,24.6138]
[1752321076001,3.4279,2966.0,2965.9,25.28782]
[1752321076296,4.1019,2966.0,2965.9,25.28782]
[1752321077200,3.4279,2966.0,2965.9,25.28782]
[1752321077900,3.4279,2966.0,2965.9,26.68382]
[1752321078101,3.4279,2966.0,2965.9,27.58042]
[1752321079002,0.9613,2966.0,2965.9,27.58042]
[1752321079202,2.4956,2966.0,2965.9,27.58042]
[1752321082002,3.4279,2966.0,2965.9,27.58042]
[1752321082702,0.9613,2966.0,2965.9,27.58042]
[1752321083511,3.4279,2966.0,2965.9,27.58042]
[1752321083907,0.9613,2966.0,2965.9,27.58042]
[1752321084410,2.4956,2966.0,2965.9,27.58042]
[1752321086213,2.4956,2966.0,2965.9,28.42044259]
[1752321087516,3.4279,2966.0,2965.9,28.42044259]
[1752321089211,0.9613,2966.0,2965.9,28.42044259]
[1752321090510,2.4956,2966.0,2965.9,28.42044259]
[1752321092711,3.4279,2966.0,2965.9,28.42044259]
[1752321096920,0.9613,2966.0,2965.9,28.42044259]
[1752321099218,2.4956,2966.0,2965.9,28.42044259]
[1752321100119,0.9613,2966.0,2965.9,28.42044259]
[1752321100613,4.1401,2966.8,2966.7,0.67384]
[1752321100813,6.69392124,2966.8,2966.7,0.67384]
[1752321101415,7.61882124,2966.8,2966.7,0.67384]
[1752321102312,7.61882124,2966.8,2966.7,26.63564]
[1752321103512,6.5993,2966.8,2966.7,26.63564]
[1752321104722,6.5993,2966.8,2966.7,27.53234]
[1752321106427,3.3915,2966.8,2966.7,27.53234]
[1752321109422,3.3915,2966.8,2966.7,26.63564]
[1752321112230,3.3915,2966.8,2966.7,27.52814]
[1752321113432,0.9047,2967.5,2967.4,2.48878]
[1752321113626,0.9047,2967.5,2967.4,31.53570259]
[1752321113827,1.92193617,2967.5,2967.4,31.53570259]
[1752321114021,1.01723617,2967.5,2967.4,31.53570259]
[1752321114233,0.926,2968.0,2967.9,3.97667]
[1752321114434,0.926,2968.0,2967.9,31.56849259]
[1752321114623,0.926,2968.3,2968.2,2.5245]
[1752321114831,3.58600412,2968.3,2968.2,28.35962259]
[1752321115026,2.3955,2968.3,2968.2,28.35962259]
[1752321116132,3.3002,2968.3,2968.2,28.35962259]
[1752321120340,3.3002,2968.3,2968.2,27.5196]
[1752321120537,3.3002,2968.3,2968.0,0.84002259]
[1752321120538,2.3742,2968.2,2968.0,0.9284]
[1752321120743,1.76602259,2968.1,2968.0,0.67355]
[1752321120942,2.67072259,2968.1,2968.0,0.67355]
[1752321121239,0.926,2967.8,2967.7,0.6736]
[1752321121437,4.14022259,2967.8,2967.7,24.1996]
[1752321121636,3.3002,2967.8,2967.7,24.1996]
[1752321122039,3.3002,2967.8,2967.7,0.6736]
[1752321122241,3.3002,2967.8,2967.7,24.1976]
[1752321122942,3.3002,2967.8,2967.7,27.5007]
[1752321123241,3.3002,2967.8,2967.7,27.4997]
[1752321124542,1.8307,2968.0,2967.9,0.9226]
[1752321124841,3.3002,2968.0,2967.9,30.87292259]
[1752321125036,3.3002,2968.0,2967.9,31.54649259]
[1752321125735,0.926,2968.3,2968.2,3.9766]
[1752321125935,0.926,2968.3,2968.2,28.33262259]
[1752321126240,3.3002,2968.3,2968.2,28.33262259]
[1752321127040,2.3955,2968.3,2968.2,28.33262259]
[1752321128141,3.3002,2968.3,2968.2,28.33262259]
[1752321128835,3.2078,2968.6,2968.2,28.33262259]
[1752321128836,5.6033,2968.6,2968.5,1.59603]
[1752321129043,5.6033,2968.6,2968.5,27.48753]
[1752321129438,6.508,2968.6,2968.5,27.48753]
[1752321130940,7.34802259,2968.6,2968.5,25.10703]
[1752321131140,4.97382259,2968.6,2968.2,2.3805]
[1752321131449,2.3955,2968.1,2968.0,2.52455]
[1752321131644,3.3002,2968.1,2968.0,26.03055]
[1752321132334,3.3002,2968.1,2968.0,27.48265]
[1752321136247,3.3002,2968.1,2968.0,28.32267259]
[1752321139645,3.2078,2968.9,2968.2,1.68373]
[1752321139851,0.9887,2968.6,2968.5,1.59573]
[1752321140053,2.4284,2968.6,2968.5,25.08573]
[1752321140353,3.3334,2968.6,2968.5,25.08573]
[1752321141847,3.3334,2968.6,2968.5,25.99103]
[1752321142049,3.3334,2968.6,2968.5,27.45663]
[1752321144154,5.6362,2968.9,2968.8,1.59567]
[1752321144351,6.65206437,2968.9,2968.8,25.98197]
[1752321144853,7.55706437,2968.9,2968.8,25.98197]
[1752321146353,4.34926437,2968.9,2968.8,25.98197]
[1752321149755,4.34926437,2968.9,2968.8,24.14637]
[1752321150656,4.34926437,2968.9,2968.8,0.67337]
[1752321150957,4.34926437,2968.9,2968.8,24.14137]
[1752321151256,4.34926437,2968.9,2968.8,0.67337]
[1752321151456,4.34926437,2968.9,2968.8,24.14037]
[1752321153952,5.02260437,2968.9,2968.8,24.14037]
[1752321155150,1.4397,2969.1,2969.0,0.67332]
[1752321155358,3.3334,2969.1,2969.0,27.43052]
[1752321156460,4.17342259,2969.7,2969.6,0.67318]
[1752321157060,4.84658259,2969.7,2969.6,0.67318]
[1752321157462,4.17342259,2969.7,2969.6,0.67318]
[1752321157664,4.84658259,2969.7,2969.6,0.67318]
[1752321160254,3.3334,2969.2,2969.1,1.8276]
[1752321160459,4.17342259,2969.2,2969.1,25.9509]
[1752321163463,4.17342259,2969.2,2969.1,27.3622]
[1752321163664,4.17342259,2969.2,2969.1,27.3582]
[1752321165167,4.17342259,2969.2,2969.1,27.3562]
[1752321165561,4.17342259,2969.2,2969.1,3.9122]
[1752321165770,4.17342259,2969.2,2969.1,27.3532]
[1752321166161,3.3334,2969.2,2969.1,27.3532]
[1752321166666,3.3334,2969.2,2969.1,3.9122]
[1752321166863,3.3334,2969.2,2969.1,27.3502]
[1752321175771,3.3334,2969.2,2969.1,1.5956]
[1752321175970,4.84669259,2969.2,2969.1,24.0953]
[1752321178280,4.17342259,2969.2,2969.1,24.0953]
[1752321182583,4.17342259,2969.2,2969.1,24.0853]
[1752321182988,4.17342259,2969.2,2969.1,25.9328]
[1752321183293,3.3334,2969.2,2969.1,27.3441]
[1752321183588,2.4284,2969.2,2969.1,28.18412259]
[1752321184591,1.9761,2969.4,2969.3,1.61285]
[1752321184790,3.4315,2969.4,2969.3,25.92975]
[1752321184990,3.4315,2969.4,2969.3,27.34105]
[1752321194394,4.44550612,2969.4,2969.3,27.34105]
[1752321196700,3.4315,2969.4,2969.3,27.34105]
[1752321208800,4.0907,2969.8,2969.7,0.67316]
[1752321209004,7.47999611,2969.8,2969.7,2.55016]
[1752321209602,7.47999611,2969.8,2969.7,3.91096]
[1752321209807,7.47999611,2969.8,2969.7,1.60036]
[1752321210004,8.3200187,2969.8,2969.7,0.67316]
[1752321211009,5.1122187,2969.8,2969.7,0.67316]
[1752321213203,5.7853587,2969.8,2969.7,0.67316]
[1752321213408,5.1122187,2969.8,2969.7,0.67316]
[1752321215211,5.7853587,2969.8,2969.7,0.67316]
[1752321215710,0.6732,2969.6,2969.5,0.67319]
[1752321215908,4.94539611,2969.6,2969.5,24.03019]
[1752321216109,3.2585,2969.1,2969.0,7.11892]
[1752321216310,3.2585,2969.1,2969.0,30.47492]
[1752321228114,1.78342259,2969.6,2969.5,0.67321]
[1752321228319,5.15847084,2969.6,2969.5,0.67321]
[1752321231620,4.31844825,2969.6,2969.5,2.57211]
[1752321232418,4.31844825,2969.6,2969.5,4.01111]
[1752321233621,4.31844825,2969.6,2969.5,27.34411]
[1752321239223,4.31844825,2969.6,2969.5,4.01111]
[1752321244719,4.31844825,2969.6,2969.5,2.57211]
[1752321244925,5.15847084,2969.6,2969.5,1.58611]
[1752321245123,5.15847084,2969.6,2969.5,24.90211]
[1752321245422,5.15847084,2969.6,2969.5,25.88811]
[1752321246623,5.15847084,2969.6,2969.5,27.32711]
[1752321247022,4.14532259,2969.6,2969.5,27.32711]
[1752321247625,3.3053,2969.6,2969.5,27.32711]
[1752321248435,3.3053,2969.9,2969.8,3.02504]
[1752321248629,4.31839244,2969.9,2969.8,4.01104]
[1752321249132,5.15841503,2969.9,2969.8,23.98214]
[1752321249337,4.31839244,2969.9,2969.8,24.89504]
[1752321249636,4.99151244,2969.9,2969.8,25.88104]
[1752321249833,4.99151244,2969.9,2969.8,24.89504]
[1752321250338,4.99151244,2969.9,2969.8,23.98014]
[1752321252038,4.99151244,2969.9,2969.8,25.87904]
[1752321255639,4.99151244,2969.9,2969.8,27.18224]
[1752321255839,4.99151244,2969.9,2969.8,2.57204]
[1752321256039,4.99151244,2969.9,2969.8,25.87104]
[1752321256644,4.31839244,2969.9,2969.8,25.87104]
[1752321256846,4.99151244,2969.9,2969.8,24.88504]
[1752321258145,4.99151244,2969.9,2969.8,25.83924]
[1752321258742,4.31839244,2969.9,2969.8,25.83924]
[1752321259844,4.99151244,2969.9,2969.8,25.83924]
[1752321260747,4.31839244,2969.9,2969.8,27.14244]
[1752321261346,4.3161707,2969.9,2969.8,27.14244]
[1752321261546,4.31617068,2969.9,2969.8,27.14244]
[1752321261746,3.3053,2969.9,2969.8,27.14244]
[1752321264744,3.92559,2970.1,2970.0,3.79899]
[1752321264949,4.93607919,2970.1,2970.0,3.79899]
[1752321265151,4.93607919,2970.1,2970.0,27.08499]
[1752321266252,4.93607919,2970.1,2970.0,24.1545]
[1752321266448,4.93607919,2970.1,2970.0,24.82759]
[1752321266947,4.93607919,2970.1,2970.0,24.1545]
[1752321267148,4.93607919,2970.1,2970.0,24.82759]
[1752321268051,4.93605919,2970.1,2970.0,25.78179]
[1752321268252,4.26298919,2970.1,2970.0,25.78179]
[1752321269452,4.93605919,2970.1,2970.0,25.78179]
[1752321271052,2.93422,2970.0,2969.9,0.6731]
[1752321271348,2.93422,2970.0,2969.8,0.67312]
[1752321271349,4.76364928,2969.9,2969.8,0.67312]
[1752321271549,5.77413847,2969.9,2969.8,0.67312]
[1752321274755,3.92566,2969.8,2969.7,2.49585]
[1752321274948,4.93614919,2969.8,2969.7,2.49585]
[1752321277753,4.93614919,2969.8,2969.7,0.8685]
[1752321278452,0.67316,2969.7,2969.6,24.81067]
[1752321278653,4.76366928,2969.7,2969.6,25.76487]
[1752321279055,3.92573,2969.4,2969.3,1.8227]
[1752321279255,4.76373928,2969.4,2969.3,25.0917]
[1752321279557,4.76373928,2969.4,2969.3,25.0897]
[1752321279950,0.83800928,2969.4,2969.1,0.67328]
[1752321280158,3.92577,2969.2,2969.1,25.762]
[1752321280457,3.92577,2969.2,2969.1,27.0652]
[1752321286165,3.92577,2969.2,2969.1,27.0622]
[1752321289170,3.92577,2969.2,2969.1,26.3889]
[1752321289471,3.92577,2969.2,2969.1,25.759]
[1752321289672,3.92577,2969.2,2969.1,2.496]
[1752321289872,3.92577,2969.2,2969.1,25.753]
[1752321290073,3.92577,2969.2,2969.1,27.1041]
[1752321294470,3.92578,2969.2,2969.1,27.1041]
[1752321294776,3.2525,2969.2,2969.1,27.1041]
[1752321295277,3.92578,2969.2,2969.1,27.1041]
[1752321295670,3.2525,2969.2,2969.1,27.1041]
[1752321296376,3.92578,2969.2,2969.1,27.1041]
[1752321296784,3.92578,2969.2,2969.1,27.0971]
[1752321302075,3.2525,2969.2,2969.1,27.0971]
[1752321302276,3.80903,2969.4,2969.3,2.2441]
[1752321302471,4.81704857,2969.4,2969.3,3.21]
[1752321302675,4.81704857,2969.4,2969.3,27.12725]
[1752321303980,8.02484857,2969.4,2969.3,27.12725]
[1752321305478,8.86326122,2969.4,2969.3,25.77615]
[1752321305783,8.86326122,2969.4,2969.3,0.67325]
[1752321306882,1.55995,2969.3,2969.2,24.80526]
[1752321307079,4.81706857,2969.3,2969.2,1.8589]
[1752321307279,3.8091,2969.1,2969.0,1.56632]
[1752321307484,4.64751265,2969.1,2969.0,2.53222]
[1752321307679,3.80912,2969.0,2968.9,0.67334]
[1752321307881,3.80912,2969.0,2968.9,23.91034]
[1752321308082,3.80912,2969.0,2968.9,24.80334]
[1752321308284,3.80912,2969.0,2968.9,2.53224]
[1752321308481,3.80912,2969.0,2968.9,3.88334]
[1752321309285,4.81827839,2969.0,2968.9,3.88334]
[1752321309485,3.1358,2969.0,2968.9,3.88334]
[1752321310188,4.14519276,2969.0,2968.9,3.88334]
[1752321311686,4.81851276,2969.0,2968.9,3.88334]
[1752321312697,4.14519276,2969.0,2968.9,3.88334]
[1752321313393,4.14519276,2969.0,2968.9,27.11534]
[1752321316405,3.1358,2969.0,2968.9,27.11534]
[1752321317706,3.80912,2969.0,2968.9,27.11534]
[1752321318002,3.1358,2969.0,2968.9,27.11534]
[1752321324401,3.2078,2969.1,2969.0,1.57482]
[1752321324603,2.1815,2969.2,2969.1,3.8726]
[1752321324807,3.19062341,2969.2,2969.1,27.0916]
[1752321325605,4.09312341,2969.2,2969.1,27.0916]
[1752321325807,3.19062341,2969.2,2969.1,27.0916]
[1752321327807,4.09312341,2969.2,2969.1,27.0916]
[1752321328907,3.19062341,2969.2,2969.1,27.0916]
[1752321329405,4.09312341,2969.2,2969.1,27.0916]
[1752321329605,4.76640341,2969.2,2969.1,27.0916]
[1752321329805,4.09312341,2969.2,2969.1,27.0916]
[1752321330005,4.76640341,2969.2,2969.1,27.0916]
[1752321330305,4.76640341,2969.2,2969.1,25.7833]
[1752321330501,4.76640341,2969.2,2969.1,1.5748]
[1752321330706,4.76640341,2969.2,2969.1,23.8853]
[1752321332907,7.97420341,2969.2,2969.1,0.6733]
[1752321336410,4.09312341,2969.2,2969.1,3.8726]
[1752321336714,4.76640341,2969.2,2969.1,3.8726]
[1752321337012,7.97420341,2969.2,2969.1,2.5643]
[1752321337914,7.97420341,2969.2,2969.1,0.9015]
[1752321338307,7.97420341,2969.2,2969.1,1.5748]
[1752321339012,4.76640341,2969.2,2969.1,1.5748]
[1752321339204,7.97420341,2969.2,2969.1,1.5748]
[1752321339511,7.97420341,2969.2,2969.1,0.9015]
[1752321340710,7.97420341,2969.2,2969.1,1.891]
[1752321341011,7.97420341,2969.2,2969.1,2.5643]
[1752321341308,7.97420341,2969.2,2969.1,0.6733]
[1752321342410,7.97420341,2969.2,2969.1,2.5643]
[1752321345013,7.97420341,2969.2,2968.2,3.2078]
[1752321345014,0.9025,2968.6,2968.2,3.2078]
[1752321345310,3.1229,2967.1,2967.0,3.0246]
[1752321345507,7.29526008,2967.1,2967.0,3.0246]
[1752321345717,3.1229,2967.0,2966.9,0.8711]
[1752321345912,7.00447,2967.0,2966.9,0.8711]
[1752321346210,7.00447,2967.0,2966.9,1.7831]
[1752321347714,7.00447,2967.0,2966.9,3.0246]
[1752321355017,3.88157,2967.0,2966.9,3.86301265]
[1752321355612,3.88157,2967.0,2966.9,3.0246]
[1752321358111,5.3629,2967.0,2963.4,43.34165682]
[1752321358311,3.1229,2966.0,2965.9,0.8711]
[1752321358616,4.63531265,2966.0,2965.9,0.8711]
[1752321358817,4.63531265,2966.0,2965.9,1.7831]
[1752321362112,0.67421,2965.1,2965.0,0.8711]
[1752321362312,5.33621265,2965.3,2965.1,1.2415]
[1752321362506,3.88196,2965.3,2965.2,2.1126]
[1752321362714,3.88196,2965.3,2965.2,3.0246]
[1752321363720,7.00486,2965.3,2965.2,1.7831]
[1752321365317,2.50711,2965.1,2965.0,1.7831]
[1752321365513,4.63552265,2965.1,2965.0,1.7831]
[1752321366416,0.8651,2964.9,2964.8,1.7831]
[1752321366615,0.8651,2964.9,2964.5,1.2415]
[1752321366616,3.79722,2964.6,2964.5,3.0246]
[1752321366812,3.79722,2964.6,2964.5,0.912]
[1752321366813,7.84343265,2964.6,2964.5,0.912]
[1752321367020,2.82958,2963.9,2963.8,1.7831]
[1752321367220,7.84359265,2963.9,2963.8,1.7831]
[1752321367513,7.84359265,2963.9,2963.8,3.0246]
[1752321367514,4.74738,2963.9,2963.8,3.0246]
[1752321367714,3.88228,2963.9,2963.8,3.0246]
[1752321367911,3.2078,2963.9,2963.8,3.0246]
[1752321368110,3.88228,2963.9,2963.8,3.0246]
[1752321368510,3.88228,2963.9,2963.8,3.6991]
[1752321369115,3.2078,2963.9,2963.8,3.6991]
[1752321370126,2.1551,2964.2,2964.1,3.69903]
[1752321370420,5.3629,2964.2,2964.1,3.69903]
[1752321371014,7.84352265,2964.2,2964.1,3.0246]
[1752321371321,7.84352265,2964.2,2964.1,2.45753]
[1752321371522,7.16911265,2964.2,2964.1,3.69903]
[1752321371725,6.3307,2964.2,2964.1,3.69903]
[1752321372225,0.8651,2963.8,2963.7,2.45762]
[1752321372426,6.20131265,2963.8,2963.7,3.69912]
[1752321372727,5.3629,2963.8,2963.7,3.69912]
[1752321372922,4.0729,2963.8,2963.7,3.69912]
[1752321373223,3.2078,2963.8,2963.7,8.69912]
[1752321373425,3.2078,2964.2,2964.1,1.54553]
[1752321373623,3.2078,2964.2,2964.1,3.81213]
[1752321374222,5.4311,2964.7,2964.6,3.89452]
[1752321374424,8.32464307,2964.7,2964.6,2.53992]
[1752321376729,7.35684307,2964.7,2964.6,3.89452]
[1752321377628,8.26204307,2964.7,2964.6,3.89452]
[1752321378525,6.51843042,2964.7,2964.6,3.89452]
[1752321379031,3.31063042,2964.7,2964.6,3.89452]
[1752321379330,8.26204307,2964.7,2964.6,3.89452]
[1752321380426,8.93634307,2964.7,2964.6,2.53992]
[1752321380628,8.93634307,2964.7,2964.6,1.8656]
[1752321380827,8.93634307,2964.7,2964.6,2.53992]
[1752321381026,8.26204307,2964.7,2964.6,3.89452]
[1752321381227,8.93634307,2964.7,2964.6,3.89452]
[1752321381530,8.26204307,2964.7,2964.6,3.89452]
[1752321381933,8.26204307,2964.7,2964.6,2.53992]
[1752321383731,8.26204307,2964.7,2964.6,3.89452]
[1752321384426,9.45254719,2964.7,2964.6,3.89452]
[1752321384826,9.45533545,2964.7,2964.6,3.89452]
[1752321385224,10.12963545,2964.7,2964.6,3.89452]
[1752321385425,3.1877,2964.4,2964.3,3.2955]
[1752321385634,5.79059133,2964.4,2964.3,3.96989]
[1752321386226,8.99839133,2964.4,2964.3,3.2955]
[1752321386626,2.9378,2964.3,2964.2,0.67439]
[1752321386931,4.95221868,2964.3,2964.2,0.9873]
[1752321387127,6.14720631,2964.3,2964.2,0.9873]
[1752321387331,4.27781868,2964.3,2964.2,2.61531]
[1752321387531,5.47553023,2964.3,2964.2,3.96991]
[1752321387932,6.14992023,2964.3,2964.2,2.61531]
[1752321388430,3.8622,2963.8,2963.7,2.61541]
[1752321388628,5.79073133,2963.8,2963.7,2.61541]
[1752321388932,5.79073133,2963.8,2963.7,1.9409]
[1752321389328,6.98949404,2963.8,2963.7,0.67452]
[1752321389832,6.98949404,2963.8,2963.7,2.61542]
[1752321390227,5.11623133,2963.8,2963.7,2.61542]
[1752321390626,4.95231868,2963.8,2963.7,2.61542]
[1752321390832,6.91613434,2963.8,2963.7,2.61542]
[1752321391032,7.59063434,2963.8,2963.7,2.61542]
[1752321391235,5.79073133,2963.8,2963.7,2.61542]
[1752321391828,5.79073133,2963.8,2963.0,0.83841265]
[1752321391829,1.59888,2963.5,2963.4,1.62817]
[1752321392030,2.2634,2962.9,2962.1,3.2078]
[1752321392230,5.4903,2962.9,2962.8,3.97023]
[1752321392429,7.47127665,2962.9,2962.8,3.97023]
[1752321393323,7.47127665,2962.9,2962.8,2.61563]
[1752321393528,8.3096893,2962.9,2962.8,2.61563]
[1752321394129,8.9844093,2962.9,2962.7,0.67474]
[1752321394436,3.35827665,2962.8,2962.7,3.97025]
[1752321394635,1.07577665,2962.8,2962.7,3.97025]
[1752321395235,2.00007665,2962.8,2962.7,3.97025]
[1752321395536,4.55901583,2962.8,2962.7,3.97025]
[1752321396437,1.07577665,2962.8,2962.7,5.65388475]
[1752321396738,0.42577918,2963.0,2962.9,0.67471]
[1752321396935,3.2078,2963.2,2963.1,2.61556]
[1752321397138,3.2078,2963.2,2963.1,3.97016]
[1752321397332,2.37859559,2963.9,2963.8,1.5659]
[1752321397537,5.4903,2964.0,2963.9,2.61538]
[1752321398130,5.4903,2964.0,2963.9,0.67448]
[1752321398438,6.3955,2964.0,2963.9,0.67448]
[1752321400432,6.3955,2964.0,2963.9,2.61538]
[1752321400935,7.06996,2964.0,2963.9,0.67448]
[1752321401137,6.3955,2964.0,2963.9,0.67448]
[1752321401338,7.06996,2964.0,2963.9,0.67448]
[1752321401541,1.8295,2963.8,2963.7,0.67452]
[1752321401732,0.9243,2963.2,2963.1,0.9536]
[1752321401931,3.1877,2963.2,2963.1,1.62826]
[1752321402434,3.1877,2963.2,2963.1,2.61556]
[1752321402636,3.1877,2963.2,2963.1,1.66196]
[1752321403134,1.59894,2963.2,2963.0,0.67467]
[1752321403329,0.9243,2962.9,2962.8,1.62833]
[1752321403535,3.2975,2962.9,2962.8,1.62833]
[1752321403938,6.5053,2962.9,2962.8,2.61563]
[1752321405038,5.6001,2962.9,2962.8,2.61563]
[1752321405245,5.6001,2962.9,2962.8,3.41373]
[1752321405737,6.5958,2963.2,2963.1,2.56056]
[1752321406041,1.468,2963.2,2963.1,3.35866]
[1752321406444,6.5925,2963.5,2963.4,1.63339]
[1752321406640,6.5925,2963.5,2963.4,2.56049]
[1752321407542,7.26707,2963.5,2963.4,2.56049]
[1752321408541,6.5925,2963.5,2963.4,2.56049]
[1752321409840,7.26707,2963.5,2963.4,2.56049]
[1752321410042,7.26707,2963.5,2963.4,0.67459]
[1752321410344,3.3847,2963.1,2963.0,2.56058]
[1752321411444,3.3847,2963.1,2963.0,1.60178]
[1752321412645,2.4828,2963.1,2963.0,3.35868]
[1752321412841,3.3847,2963.4,2963.3,2.56052]
[1752321413250,2.4828,2963.4,2963.3,2.56052]
[1752321413444,4.05929,2963.4,2963.3,2.56052]
[1752321413644,3.3847,2963.4,2963.3,1.60172]
[1752321413844,3.3847,2963.4,2963.1,0.67464]
[1752321413845,1.57655,2963.2,2963.1,0.67464]
[1752321414048,1.57655,2963.2,2962.8,23.394]
[1752321414049,6.5925,2963.2,2962.8,0.9271]
[1752321414244,1.0148,2963.1,2963.0,0.67467]
[1752321414448,3.3847,2963.1,2963.0,0.67467]
[1752321414849,4.05936,2963.1,2963.0,0.67467]
[1752321415449,4.05936,2963.1,2962.8,0.9271]
[1752321415450,1.68951,2963.0,2962.9,0.67469]
[1752321415652,4.05941,2963.0,2962.9,0.67469]
[1752321416144,1.9167,2962.8,2962.6,0.9271]
[1752321416347,1.9167,2962.5,2962.4,0.6748]
[1752321416548,3.3847,2962.5,2962.4,2.5607]
[1752321417740,3.3847,2962.0,2961.9,2.56083]
[1752321418849,3.38082053,2962.0,2961.9,2.56083]
[1752321419052,2.4828,2962.0,2961.9,3.35893]
[1752321419252,2.4828,2962.0,2961.9,2.56083]
[1752321419447,5.6906,2962.6,2962.5,0.6748]
[1752321420052,5.6906,2962.6,2962.5,2.5607]
[1752321420441,3.2078,2962.6,2962.5,2.5607]
[1752321420642,5.6906,2962.6,2962.5,2.5607]
[1752321421053,6.5925,2962.6,2962.5,2.5607]
[1752321421250,3.2078,2962.9,2962.6,0.67477]
[1752321421553,6.5925,2962.9,2962.8,2.56063]
[1752321421746,5.6906,2962.9,2962.8,2.56063]
[1752321421944,4.6758,2962.9,2962.8,3.35873]
[1752321422147,4.6758,2962.9,2962.8,2.56063]
[1752321422148,5.6906,2962.9,2962.8,2.56063]
[1752321422355,6.5925,2962.9,2962.8,2.56063]
[1752321423156,6.5925,2962.9,2962.8,1.8859]
[1752321423358,6.5925,2962.9,2962.8,2.56063]
[1752321424649,5.6906,2962.9,2962.8,2.56063]
[1752321424855,3.2078,2962.9,2962.8,3.35873]
[1752321426144,3.2078,2963.2,2963.1,0.67466]
[1752321426348,4.6758,2963.2,2963.1,3.31786]